[Event "Kurnosov Memorial Rapid 2019"]
[Site "Chelyabinsk"]
[Date "2019.09.08"]
[Round "10.10"]
[White "Bezgodov, Alexei"]
[Black "Frolyanov, Dmitry"]
[Result "1/2-1/2"]
[ECO "B24"]
[WhiteElo "2459"]
[BlackElo "2545"]
[Annotator "ChessBase"]
[PlyCount "122"]
[EventDate "2019.09.06"]
[EventType "swiss"]
[EventCountry "RUS"]
[SourceTitle "playchess.com"]
[Source "ChessBase"]
[SourceQuality "1"]
[TimeControl "900+10"]

1. e4 {[%emt 0:00:00]} c5 {[%emt 0:00:00]} 2. Nc3 {[%emt 0:00:00]} Nc6 {[%emt 0:00:00]} 3. Bb5 {[%emt 0:00:00]} Nd4 {[%emt 0:00:00]} 4. Nf3 {[%emt 0:00:00]} e6 {[%emt 0:00:13]} 5. O-O {[%emt 0:00:08]} a6 {[%emt 0:00:07]} 6. Bd3 {[%emt 0:00:03]} Nc6 {[%emt 0:00:08]} 7. e5 {[%emt 0:00:54]} d6 {[%emt 0:03:22]} 8. exd6 {[%emt 0:00:14]} Nf6 {[%emt 0:00:43]} 9. Ne4 {[%emt 0:02:16]} Nxe4 {[%emt 0:02:22]} 10. Bxe4 {[%emt 0:00:07]} Qxd6 {[%emt 0:00:07]} 11. b4 {[%emt 0:02:37]} cxb4 {[%emt 0:00:46]} 12. Bb2 {[%emt 0:00:08]} Bd7 {[%emt 0:00:33]} 13. a3 {[%emt 0:00:17]} O-O-O {[%emt 0:00:26]} 14. Re1 {[%emt 0:00:35]} Be7 {[%emt 0:01:31]} 15. axb4 {[%emt 0:00:24]} f5 {[%emt 0:00:23]} 16. Bxc6 {[%emt 0:03:15]} Bxc6 {[%emt 0:00:10]} 17. Nd4 {[%emt 0:01:05]} Bf6 {[%emt 0:02:28]} 18. Rxe6 {[%emt 0:00:42]} Qxb4 {[%emt 0:00:03]} 19. Nxc6 {[%emt 0:01:43]} Qxb2 {[%emt 0:00:02]} 20. Rb1 {[%emt 0:00:12]} Rxd2 {[%emt 0:00:47]} 21. Qf1 {[%emt 0:00:04]} Qa2 {[%emt 0:00:25]} 22. Ne7+ {[%emt 0:02:27]} Bxe7 {[%emt 0:01:34]} 23. Rxe7 {[%emt 0:00:02]} Qd5 {[%emt 0:00:02]} 24. Rbxb7 {[%emt 0:00:46]} Qxb7 {[%emt 0:00:02]} 25. Qc4+ {[%emt 0:00:02]} Kd8 {[%emt 0:00:13]} 26. Rxb7 {[%emt 0:00:02]} Rd1+ {[%emt 0:00:01]} 27. Qf1 {[%emt 0:00:01]} Rxf1+ {[%emt 0:00:02]} 28. Kxf1 {[%emt 0:00:01]} Kc8 {[%emt 0:01:24]} 29. Ra7 {[%emt 0:00:10]} Kb8 {[%emt 0:00:05]} 30. Rxa6 {[%emt 0:00:01]} Rc8 {[%emt 0:00:17]} 31. Ra2 {[%emt 0:00:04]} Kb7 {[%emt 0:00:04]} 32. Ke2 {[%emt 0:00:03]} Kb6 {[%emt 0:00:03]} 33. Kd3 {[%emt 0:00:09]} Rd8+ {[%emt 0:00:16]} 34. Ke3 {[%emt 0:00:01]} Rc8 {[%emt 0:00:26]} 35. Kf4 {[%emt 0:00:17]} Rc5 {[%emt 0:00:04]} 36. f3 {[%emt 0:00:16]} h6 {[%emt 0:00:19]} 37. h4 {[%emt 0:00:09]} g6 {[%emt 0:00:01]} 38. g3 {[%emt 0:00:21]} Kb7 {[%emt 0:00:05]} 39. Ra4 {[%emt 0:00:24]} Rxc2 {[%emt 0:00:12]} 40. h5 {[%emt 0:00:02]} gxh5 {[%emt 0:00:19]} 41. Kxf5 {[%emt 0:00:25]} Rc5+ {[%emt 0:00:43]} 42. Kf4 {[%emt 0:00:01]} Kc7 {[%emt 0:00:29]} 43. Ra6 {[%emt 0:00:25]} Rc4+ {[%emt 0:00:14]} 44. Ke5 {[%emt 0:00:31]} h4 {[%emt 0:00:15]} 45. gxh4 {[%emt 0:00:25]} Rxh4 {[%emt 0:00:02]} 46. f4 {[%emt 0:00:02]} Rh1 {[%emt 0:00:35]} 47. f5 {[%emt 0:00:09]} h5 {[%emt 0:00:10]} 48. Rh6 {[%emt 0:00:22]} h4 {[%emt 0:00:07]} 49. Kf6 {[%emt 0:00:12]} h3 {[%emt 0:00:02]} 50. Kf7 {[%emt 0:00:03]} Rf1 {[%emt 0:00:13]} 51. f6 {[%emt 0:00:13]} Rf3 {[%emt 0:00:01]} 52. Ke7 {[%emt 0:00:02]} Re3+ {[%emt 0:00:03]} 53. Kf8 {[%emt 0:00:01]} Kd7 {[%emt 0:00:05]} 54. f7 {[%emt 0:00:10]} Rg3 {[%emt 0:00:02]} 55. Rh4 {[%emt 0:00:06]} Kd8 {[%emt 0:00:09]} 56. Rd4+ {[%emt 0:00:40]} Kc7 {[%emt 0:00:01]} 57. Ke7 {[%emt 0:00:18]} Re3+ {[%emt 0:00:01]} 58. Kf6 {[%emt 0:00:02]} Rf3+ {[%emt 0:00:18]} 59. Kg6 {[%emt 0:00:03]} Rg3+ {[%emt 0:00:00]} 60. Kf5 {[%emt 0:00:12]} Rf3+ {[%emt 0:00:05]} 61. Kg6 {[%emt 0:00:09]} Rg3+ {[%emt 0:00:00]} 1/2-1/2

[Event "Kurnosov Memorial Rapid 2019"]
[Site "Chelyabinsk"]
[Date "2019.09.08"]
[Round "11.3"]
[White "Sivuk, Vitaly"]
[Black "Volkov, Sergey"]
[Result "1-0"]
[ECO "A21"]
[WhiteElo "2559"]
[BlackElo "2557"]
[Annotator "ChessBase"]
[PlyCount "115"]
[EventDate "2019.09.06"]
[EventType "swiss"]
[EventCountry "RUS"]
[SourceTitle "playchess.com"]
[Source "ChessBase"]
[SourceQuality "1"]
[TimeControl "900+10"]

1. c4 {[%emt 0:00:00]} e5 {[%emt 0:00:00]} 2. Nc3 {[%emt 0:00:00]} Bb4 {[%emt 0:00:00]} 3. Nd5 {[%emt 0:00:02]} Bc5 {[%emt 0:00:00]} 4. Nf3 {[%emt 0:00:17]} c6 {[%emt 0:00:01]} 5. Nc3 {[%emt 0:00:02]} Qe7 {[%emt 0:00:08]} 6. d4 {[%emt 0:01:35]} exd4 {[%emt 0:00:03]} 7. Nxd4 {[%emt 0:00:02]} Nf6 {[%emt 0:00:03]} 8. a3 {[%emt 0:02:31]} d5 {[%emt 0:01:33]} 9. cxd5 {[%emt 0:00:08]} Nxd5 {[%emt 0:00:45]} 10. Nxd5 {[%emt 0:00:09]} cxd5 {[%emt 0:00:02]} 11. b4 {[%emt 0:02:55]} Bb6 {[%emt 0:01:55]} 12. Bb2 {[%emt 0:00:02]} a5 {[%emt 0:00:18]} 13. e3 {[%emt 0:00:18]} O-O {[%emt 0:00:24]} 14. b5 {[%emt 0:01:11]} a4 {[%emt 0:00:25]} 15. Bd3 {[%emt 0:00:38]} Ba5+ {[%emt 0:00:13]} 16. Kf1 {[%emt 0:00:02]} Bc7 {[%emt 0:00:34]} 17. Qh5 {[%emt 0:01:54]} g6 {[%emt 0:00:39]} 18. Qxd5 {[%emt 0:00:27]} Nd7 {[%emt 0:00:40]} 19. Rc1 {[%emt 0:02:50]} Ne5 {[%emt 0:01:19]} 20. Be2 {[%emt 0:00:14]} Rd8 {[%emt 0:01:13]} 21. Qe4 {[%emt 0:00:37]} Bd6 {[%emt 0:00:12]} 22. Ra1 {[%emt 0:00:57]} Re8 {[%emt 0:02:24]} 23. h3 {[%emt 0:00:33]} Qf8 {[%emt 0:01:06]} 24. Qc2 {[%emt 0:00:47]} Bd7 {[%emt 0:00:43]} 25. f4 {[%emt 0:00:26]} Rec8 {[%emt 0:00:02]} 26. Qd2 {[%emt 0:00:08]} Nc4 {[%emt 0:00:04]} 27. Bxc4 {[%emt 0:00:03]} Rxc4 {[%emt 0:00:01]} 28. Kf2 {[%emt 0:00:11]} Rac8 {[%emt 0:00:22]} 29. Rhc1 {[%emt 0:00:20]} Rxc1 {[%emt 0:00:02]} 30. Bxc1 {[%emt 0:00:05]} Qe7 {[%emt 0:00:30]} 31. Bb2 {[%emt 0:00:02]} Bc5 {[%emt 0:00:19]} 32. Qc3 {[%emt 0:00:20]} f6 {[%emt 0:00:07]} 33. Rc1 {[%emt 0:00:09]} Bxd4 {[%emt 0:00:17]} 34. Qxd4 {[%emt 0:00:03]} Rxc1 {[%emt 0:00:02]} 35. Bxc1 {[%emt 0:00:01]} Bxb5 {[%emt 0:00:04]} 36. Qd5+ {[%emt 0:00:05]} Qf7 {[%emt 0:00:16]} 37. Qxb5 {[%emt 0:00:03]} Qa2+ {[%emt 0:00:01]} 38. Qe2 {[%emt 0:00:08]} Qb1 {[%emt 0:00:26]} 39. Bb2 {[%emt 0:00:02]} Kg7 {[%emt 0:00:11]} 40. Qd2 {[%emt 0:00:01]} Qf5 {[%emt 0:00:07]} 41. Qd4 {[%emt 0:00:07]} g5 {[%emt 0:00:10]} 42. Kg3 {[%emt 0:00:18]} h5 {[%emt 0:00:06]} 43. Kh2 {[%emt 0:00:04]} g4 {[%emt 0:00:07]} 44. hxg4 {[%emt 0:00:12]} hxg4 {[%emt 0:00:04]} 45. Kg3 {[%emt 0:00:02]} b5 {[%emt 0:00:05]} 46. e4 {[%emt 0:00:03]} Qe6 {[%emt 0:00:03]} 47. f5 {[%emt 0:00:06]} Qc6 {[%emt 0:00:26]} 48. e5 {[%emt 0:00:09]} b4 {[%emt 0:00:09]} 49. e6 {[%emt 0:00:06]} Qc7+ {[%emt 0:00:09]} 50. Kxg4 {[%emt 0:00:03]} Kg8 {[%emt 0:00:07]} 51. axb4 {[%emt 0:00:10]} a3 {[%emt 0:00:02]} 52. Bxa3 {[%emt 0:00:07]} Qg7+ {[%emt 0:00:10]} 53. Kf3 {[%emt 0:00:05]} Qb7+ {[%emt 0:00:02]} 54. Qe4 {[%emt 0:00:02]} Qa6 {[%emt 0:00:04]} 55. Bb2 {[%emt 0:00:25]} Qf1+ {[%emt 0:00:06]} 56. Kg3 {[%emt 0:00:01]} Qd1 {[%emt 0:00:17]} 57. Bxf6 {[%emt 0:00:10]} Qb3+ {[%emt 0:00:05]} 58. Kh2 {[%emt 0:00:03]} 1-0

[Event "Kurnosov Memorial Rapid 2019"]
[Site "Chelyabinsk"]
[Date "2019.09.08"]
[Round "11.5"]
[White "Romanov, Evgeny"]
[Black "Korneev, Oleg"]
[Result "1/2-1/2"]
[ECO "A20"]
[WhiteElo "2579"]
[BlackElo "2508"]
[Annotator "ChessBase"]
[PlyCount "84"]
[EventDate "2019.09.06"]
[EventType "swiss"]
[EventCountry "RUS"]
[SourceTitle "playchess.com"]
[Source "ChessBase"]
[SourceQuality "1"]
[TimeControl "900+10"]

1. c4 {[%emt 0:00:00]} e5 {[%emt 0:00:00]} 2. d3 {[%emt 0:00:00]} Nc6 {[%emt 0:00:00]} 3. Nc3 {[%emt 0:00:01]} Bc5 {[%emt 0:00:05]} 4. g3 {[%emt 0:00:14]} d6 {[%emt 0:00:20]} 5. Bg2 {[%emt 0:00:01]} Nf6 {[%emt 0:00:49]} 6. e3 {[%emt 0:00:22]} O-O {[%emt 0:00:15]} 7. Nge2 {[%emt 0:00:02]} a6 {[%emt 0:00:10]} 8. O-O {[%emt 0:00:06]} Ba7 {[%emt 0:00:05]} 9. b3 {[%emt 0:00:50]} Ne7 {[%emt 0:00:26]} 10. d4 {[%emt 0:00:38]} Ng6 {[%emt 0:00:08]} 11. dxe5 {[%emt 0:00:33]} Nxe5 {[%emt 0:00:20]} 12. h3 {[%emt 0:00:35]} Rb8 {[%emt 0:00:05]} 13. Nf4 {[%emt 0:01:59]} b5 {[%emt 0:00:57]} 14. cxb5 {[%emt 0:00:02]} axb5 {[%emt 0:00:01]} 15. Bb2 {[%emt 0:00:17]} Re8 {[%emt 0:02:10]} 16. Rc1 {[%emt 0:01:58]} b4 {[%emt 0:03:10]} 17. Ncd5 {[%emt 0:01:59]} Nxd5 {[%emt 0:00:03]} 18. Nxd5 {[%emt 0:00:08]} Bc5 {[%emt 0:00:08]} 19. f4 {[%emt 0:02:01]} Ng6 {[%emt 0:05:33]} 20. f5 {[%emt 0:00:08]} Ne5 {[%emt 0:00:47]} 21. f6 {[%emt 0:00:31]} Be6 {[%emt 0:01:35]} 22. Rxc5 {[%emt 0:03:05]} dxc5 {[%emt 0:00:00]} 23. Ne7+ {[%emt 0:00:16]} Kf8 {[%emt 0:00:52]} 24. Qh5 {[%emt 0:00:37]} gxf6 {[%emt 0:00:12]} 25. Qh6+ {[%emt 0:01:17]} Kxe7 {[%emt 0:00:01]} 26. Qxf6+ {[%emt 0:00:02]} Kf8 {[%emt 0:00:33]} 27. Qh6+ {[%emt 0:00:35]} Ke7 {[%emt 0:00:05]} 28. Bxe5 {[%emt 0:00:27]} Qd3 {[%emt 0:00:05]} 29. Bc6 {[%emt 0:00:32]} Rg8 {[%emt 0:00:23]} 30. Qf6+ {[%emt 0:00:17]} Kf8 {[%emt 0:00:01]} 31. Qh6+ {[%emt 0:00:14]} Ke7 {[%emt 0:00:03]} 32. Qf4 {[%emt 0:00:17]} Rg6 {[%emt 0:00:34]} 33. Be4 {[%emt 0:00:04]} Qe2 {[%emt 0:00:07]} 34. Bxc7 {[%emt 0:00:12]} Rd8 {[%emt 0:00:25]} 35. Qh4+ {[%emt 0:00:10]} f6 {[%emt 0:00:05]} 36. Qxh7+ {[%emt 0:00:10]} Bf7 {[%emt 0:00:05]} 37. Bxd8+ {[%emt 0:00:09]} Kxd8 {[%emt 0:00:03]} 38. Bxg6 {[%emt 0:00:07]} Qxe3+ {[%emt 0:00:01]} 39. Rf2 {[%emt 0:00:08]} Qe1+ {[%emt 0:00:02]} 40. Rf1 {[%emt 0:00:06]} Qe3+ {[%emt 0:00:30]} 41. Rf2 {[%emt 0:00:07]} Qe1+ {[%emt 0:00:02]} 42. Rf1 {[%emt 0:00:06]} Qe3+ {[%emt 0:00:02]} 1/2-1/2

[Event "Kurnosov Memorial Rapid 2019"]
[Site "Chelyabinsk"]
[Date "2019.09.08"]
[Round "11.6"]
[White "Yudin, Sergei"]
[Black "Zhigalko, Andrey"]
[Result "1-0"]
[ECO "B50"]
[WhiteElo "2494"]
[BlackElo "2478"]
[Annotator "ChessBase"]
[PlyCount "63"]
[EventDate "2019.09.06"]
[EventType "swiss"]
[EventCountry "RUS"]
[SourceTitle "playchess.com"]
[Source "ChessBase"]
[SourceQuality "1"]
[TimeControl "900+10"]

1. e4 {[%emt 0:00:00]} c5 {[%emt 0:00:00]} 2. Nf3 {[%emt 0:00:00]} d6 {[%emt 0:00:00]} 3. c3 {[%emt 0:00:00]} Nf6 {[%emt 0:00:00]} 4. h3 {[%emt 0:00:04]} Nc6 {[%emt 0:00:00]} 5. Bd3 {[%emt 0:00:06]} d5 {[%emt 0:00:20]} 6. e5 {[%emt 0:00:24]} Nd7 {[%emt 0:00:03]} 7. Bb5 {[%emt 0:00:03]} Qb6 {[%emt 0:00:42]} 8. Na3 {[%emt 0:00:13]} e6 {[%emt 0:00:46]} 9. d3 {[%emt 0:00:38]} Qc7 {[%emt 0:00:53]} 10. Qe2 {[%emt 0:00:51]} a6 {[%emt 0:00:31]} 11. Bxc6 {[%emt 0:00:05]} Qxc6 {[%emt 0:00:02]} 12. Nc2 {[%emt 0:00:05]} b6 {[%emt 0:00:49]} 13. O-O {[%emt 0:00:19]} a5 {[%emt 0:00:24]} 14. Rd1 {[%emt 0:00:52]} h6 {[%emt 0:00:18]} 15. Bf4 {[%emt 0:00:50]} Ba6 {[%emt 0:00:32]} 16. Qd2 {[%emt 0:00:04]} f5 {[%emt 0:00:58]} 17. exf6 {[%emt 0:00:08]} gxf6 {[%emt 0:00:03]} 18. d4 {[%emt 0:00:26]} O-O-O {[%emt 0:00:40]} 19. b4 {[%emt 0:00:51]} Rg8 {[%emt 0:01:38]} 20. bxc5 {[%emt 0:00:25]} bxc5 {[%emt 0:00:59]} 21. Ne3 {[%emt 0:01:19]} e5 {[%emt 0:04:13]} 22. dxe5 {[%emt 0:01:34]} d4 {[%emt 0:01:35]} 23. cxd4 {[%emt 0:04:09]} Qxf3 {[%emt 0:00:01]} 24. Bg3 {[%emt 0:00:27]} Rxg3 {[%emt 0:01:10]} 25. fxg3 {[%emt 0:00:08]} Qxg3 {[%emt 0:00:10]} 26. Nf5 {[%emt 0:00:53]} Qg6 {[%emt 0:00:41]} 27. Qc2 {[%emt 0:00:40]} Kb8 {[%emt 0:00:01]} 28. e6 {[%emt 0:01:08]} Nb6 {[%emt 0:00:49]} 29. Rab1 {[%emt 0:00:38]} Ka7 {[%emt 0:00:10]} 30. Rxb6 {[%emt 0:00:53]} Kxb6 {[%emt 0:00:34]} 31. Rb1+ {[%emt 0:00:02]} Kc7 {[%emt 0:00:57]} 32. Qb3 {[%emt 0:00:22]} 1-0

[Event "Kurnosov Memorial Rapid 2019"]
[Site "Chelyabinsk"]
[Date "2019.09.08"]
[Round "11.7"]
[White "Frolyanov, Dmitry"]
[Black "Slizhevsky, Alexander"]
[Result "1-0"]
[ECO "B65"]
[WhiteElo "2545"]
[BlackElo "2459"]
[Annotator "RC"]
[PlyCount "121"]
[EventDate "2019.09.06"]
[EventType "swiss"]
[EventCountry "RUS"]
[SourceTitle "playchess.com"]
[Source "ChessBase"]
[SourceQuality "1"]
[TimeControl "900+10"]

1. e4 {[%emt 0:00:00]} c5 {[%emt 0:00:00]} 2. Nf3 {[%emt 0:00:00]} d6 {[%emt 0:00:00]} 3. d4 {[%emt 0:00:00]} cxd4 {[%emt 0:00:00]} 4. Nxd4 {[%emt 0:00:00]} Nf6 {[%emt 0:00:00]} 5. Nc3 {[%emt 0:00:00]} Nc6 {[%emt 0:00:01]} 6. Bg5 {[%emt 0:00:03]} e6 {[%emt 0:00:03]} 7. Qd2 {[%emt 0:00:03]} Be7 {[%emt 0:00:03]} 8. O-O-O {[%emt 0:00:09]} O-O {[%emt 0:00:03]} 9. f4 {[%emt 0:00:02]} Nxd4 {[%emt 0:00:04]} 10. Qxd4 {[%emt 0:00:04]} Qa5 {[%emt 0:00:02]} 11. Bc4 {[%emt 0:00:22]} Bd7 {[%emt 0:00:04]} 12. e5 {[%emt 0:00:13]} dxe5 {[%emt 0:00:02]} 13. fxe5 {[%emt 0:00:03]} Bc6 {[%emt 0:00:02]} 14. Bd2 {[%emt 0:00:06]} Nd7 {[%emt 0:00:02]} 15. Nd5 {[%emt 0:00:14]} Qd8 {[%emt 0:00:03]} 16. Nxe7+ {[%emt 0:00:02]} Qxe7 {[%emt 0:00:02]} 17. Rhe1 {[%emt 0:00:19]} Rfd8 {[%emt 0:01:41]} 18. Qg4 {[%emt 0:00:22]} Nb6 {[%emt 0:00:14]} 19. Bf1 {[%emt 0:00:03]} Rac8 {[%emt 0:00:48]} 20. Bb4 {[%emt 0:02:21]} Rxd1+ {[%emt 0:00:03]} 21. Rxd1 {[%emt 0:00:04]} Qc7 {[%emt 0:00:02]} 22. Bd6 {[%emt 0:00:45]} Bf3 {[%emt 0:00:06]} 23. Bxc7 {[%emt 0:00:08]} Bxg4 {[%emt 0:00:02]} 24. Rd8+ {[%emt 0:00:02]} Rxd8 {[%emt 0:00:01]} 25. Bxd8 {[%emt 0:00:01]} Nd7 {[%emt 0:03:04]} 26. Bc7 {[%emt 0:00:08]} Bf5 {[%emt 0:01:15]} 27. Kd2 {[%emt 0:01:44]} Be4 {[%emt 0:00:10]} 28. c4 {[%emt 0:00:51]} Kf8 {[%emt 0:01:54]} 29. b4 {[%emt 0:00:18]} Ke8 {[%emt 0:00:08]} 30. Ke3 {[%emt 0:00:14]} Bc2 {[%emt 0:00:18]} 31. Be2 {[%emt 0:01:51]} b6 {[%emt 0:02:17]} 32. Bf3 {[%emt 0:00:21]} Ke7 {[%emt 0:02:26]} 33. Kd4 {[%emt 0:00:12]} f6 {[%emt 0:00:28]} 34. exf6+ {[%emt 0:00:07]} gxf6 {[%emt 0:00:08]} 35. c5 {[%emt 0:01:21]} bxc5+ {[%emt 0:00:04]} 36. bxc5 {[%emt 0:00:01]} Bb1 {[%emt 0:01:10]} 37. Bd6+ {[%emt 0:00:05]} Kd8 {[%emt 0:00:12]} 38. a3 {[%emt 0:00:55]} Ba2 {[%emt 0:01:25]} 39. Bb7 {[%emt 0:01:23]} a5 {[%emt 0:02:02]} 40. g4 {[%emt 0:02:28]} e5+ {[%emt 0:00:20]} 41. Ke3 {[%emt 0:00:49]} Bf7 {[%emt 0:00:34]} 42. Be4 {[%emt 0:00:41]} h6 {[%emt 0:00:12]} 43. h3 {[%emt 0:00:28]} Bc4 {[%emt 0:00:05]} 44. Kf3 {[%emt 0:00:11]} Ke8 {[%emt 0:00:11]} 45. c6 {[%emt 0:00:32]} Nb6 {[%emt 0:00:11]} 46. Bc7 {[%emt 0:00:02]} Nd5 {[%emt 0:00:12]} 47. Bxa5 {[%emt 0:00:04]} Ne7 {[%emt 0:00:01]} 48. Bd2 {[%emt 0:00:34]} Bb5 {[%emt 0:00:16]} 49. c7 {[%emt 0:00:02]} Bd7 {[%emt 0:00:16]} 50. Bxh6 {[%emt 0:00:35]} f5 {[%emt 0:00:01]} 51. gxf5 {[%emt 0:00:48]} Nxf5 {[%emt 0:00:01]} 52. Bg5 {[%emt 0:00:14]} Nd4+ {[%emt 0:00:05]} 53. Kg3 {[%emt 0:00:15]} Ne6 {[%emt 0:00:09]} 54. Bg6+ {[%emt 0:00:13]} Kf8 {[%emt 0:00:02]} 55. Bd8 {[%emt 0:00:05]} Nf4 {[%emt 0:00:41]} 56. Be4 {[%emt 0:00:03]} Bc8 {[%emt 0:00:07]} 57. h4 {[%emt 0:00:13]} Kf7 {[%emt 0:00:09]} 58. a4 {[%emt 0:00:09]} Ke6 {[%emt 0:00:08]} 59. Bf3 {[%emt 0:00:11]} Kd6 {[%emt 0:00:10]} 60. h5 {[%emt 0:00:13]} Ne6 {[%emt 0:00:15]} 61. h6 {[%emt 0:00:05]} 1-0

[Event "Kurnosov Memorial Rapid 2019"]
[Site "Chelyabinsk"]
[Date "2019.09.08"]
[Round "11.8"]
[White "Simantsev, Mikhail"]
[Black "Kotsur, Pavel"]
[Result "1-0"]
[ECO "E15"]
[WhiteElo "2346"]
[BlackElo "2528"]
[Annotator "RC"]
[PlyCount "171"]
[EventDate "2019.09.06"]
[EventType "swiss"]
[EventCountry "RUS"]
[SourceTitle "playchess.com"]
[Source "ChessBase"]
[SourceQuality "1"]
[TimeControl "900+10"]

1. d4 {[%emt 0:00:58]} Nf6 {[%emt 0:00:00]} 2. c4 {[%emt 0:00:05]} e6 {[%emt 0:00:00]} 3. Nf3 {[%emt 0:00:01]} b6 {[%emt 0:00:05]} 4. g3 {[%emt 0:00:05]} Ba6 {[%emt 0:00:03]} 5. Qa4 {[%emt 0:00:10]} Bb7 {[%emt 0:00:43]} 6. Bg2 {[%emt 0:00:04]} c5 {[%emt 0:00:02]} 7. dxc5 {[%emt 0:00:08]} Bxc5 {[%emt 0:00:12]} 8. O-O {[%emt 0:00:06]} O-O {[%emt 0:00:07]} 9. Nc3 {[%emt 0:00:29]} Be7 {[%emt 0:02:14]} 10. Rd1 {[%emt 0:01:05]} d6 {[%emt 0:02:50]} 11. Bf4 {[%emt 0:02:26]} a6 {[%emt 0:00:03]} 12. Qc2 {[%emt 0:01:48]} Qc7 {[%emt 0:00:08]} 13. Rac1 {[%emt 0:00:38]} Rd8 {[%emt 0:00:22]} 14. b3 {[%emt 0:00:12]} Nbd7 {[%emt 0:00:07]} 15. e4 {[%emt 0:02:25]} Nf8 {[%emt 0:03:16]} 16. e5 {[%emt 0:01:48]} dxe5 {[%emt 0:00:16]} 17. Bxe5 {[%emt 0:00:07]} Qc8 {[%emt 0:00:07]} 18. Na4 {[%emt 0:01:08]} N6d7 {[%emt 0:00:21]} 19. Bd4 {[%emt 0:02:13]} Qc7 {[%emt 0:01:15]} 20. Qb2 {[%emt 0:00:41]} f6 {[%emt 0:00:08]} 21. Qe2 {[%emt 0:00:17]} Bc6 {[%emt 0:00:20]} 22. Nc3 {[%emt 0:00:16]} Qb7 {[%emt 0:00:10]} 23. Nh4 {[%emt 0:00:28]} Rac8 {[%emt 0:01:50]} 24. Bxc6 {[%emt 0:00:02]} Qxc6 {[%emt 0:00:02]} 25. Be3 {[%emt 0:00:44]} Ne5 {[%emt 0:00:16]} 26. f4 {[%emt 0:00:11]} Nf7 {[%emt 0:01:00]} 27. Bf2 {[%emt 0:00:16]} Bb4 {[%emt 0:00:18]} 28. Ne4 {[%emt 0:00:28]} Ba3 {[%emt 0:01:29]} 29. Rxd8 {[%emt 0:00:03]} Rxd8 {[%emt 0:00:01]} 30. Rc2 {[%emt 0:00:00]} Rd7 {[%emt 0:00:34]} 31. Nf3 {[%emt 0:00:05]} Qb7 {[%emt 0:00:34]} 32. Rd2 {[%emt 0:00:06]} Rxd2 {[%emt 0:00:06]} 33. Nfxd2 {[%emt 0:00:01]} Qc6 {[%emt 0:00:20]} 34. Nf3 {[%emt 0:00:02]} Be7 {[%emt 0:00:22]} 35. Nd4 {[%emt 0:00:20]} Qd7 {[%emt 0:00:08]} 36. Nf3 {[%emt 0:00:08]} Qc6 {[%emt 0:00:06]} 37. Nd4 {[%emt 0:00:19]} Qd7 {[%emt 0:00:01]} 38. Nf3 {[%emt 0:00:10]} Qb7 {[%emt 0:00:04]} 39. Nc3 {[%emt 0:00:19]} Bb4 {[%emt 0:00:11]} 40. Ne4 {[%emt 0:00:09]} Be7 {[%emt 0:00:08]} 41. Nc3 {[%emt 0:00:07]} Bb4 {[%emt 0:00:16]} 42. Ne4 {[%emt 0:00:18]} Be7 {[%emt 0:00:07]} 43. Nc3 {[%emt 0:00:10]} Bb4 {[%emt 0:00:14]} 44. Ne4 {[%emt 0:00:04]} h6 {[%emt 0:00:01]} 45. Nd4 {[%emt 0:00:22]} Qd7 {[%emt 0:00:51]} 46. Nc2 {[%emt 0:00:23]} Be7 {[%emt 0:00:04]} 47. Bxb6 {[%emt 0:00:04]} e5 {[%emt 0:00:00]} 48. fxe5 {[%emt 0:00:11]} Nxe5 {[%emt 0:00:02]} 49. Bd4 {[%emt 0:00:01]} Nc6 {[%emt 0:00:04]} 50. Bf2 {[%emt 0:00:05]} Ne5 {[%emt 0:00:10]} 51. Nc3 {[%emt 0:00:06]} Qh3 {[%emt 0:00:37]} 52. Nd5 {[%emt 0:00:05]} Bd8 {[%emt 0:00:01]} 53. Nd4 {[%emt 0:00:08]} Nfg6 {[%emt 0:00:49]} 54. Qe4 {[%emt 0:00:25]} Qd7 {[%emt 0:00:09]} 55. Qf5 {[%emt 0:00:10]} Qb7 {[%emt 0:00:05]} 56. Nf3 {[%emt 0:00:15]} Nxf3+ {[%emt 0:00:11]} 57. Qxf3 {[%emt 0:00:01]} Qd7 {[%emt 0:00:01]} 58. Qe4 {[%emt 0:00:06]} Ne5 {[%emt 0:00:03]} 59. Bd4 {[%emt 0:00:01]} Nc6 {[%emt 0:00:01]} 60. Kg2 {[%emt 0:00:08]} Qd6 {[%emt 0:00:20]} 61. Qe8+ {[%emt 0:00:05]} Kh7 {[%emt 0:00:01]} 62. Qe4+ {[%emt 0:00:01]} Kg8 {[%emt 0:00:00]} 63. c5 {[%emt 0:00:27]} Qd7 {[%emt 0:00:05]} 64. Bc3 {[%emt 0:00:16]} a5 {[%emt 0:00:05]} 65. a3 {[%emt 0:00:01]} Na7 {[%emt 0:00:34]} 66. b4 {[%emt 0:00:09]} axb4 {[%emt 0:00:02]} 67. axb4 {[%emt 0:00:01]} Qc6 {[%emt 0:00:15]} 68. Kf3 {[%emt 0:00:18]} Qd7 {[%emt 0:00:03]} 69. Ne3 {[%emt 0:00:25]} Kf8 {[%emt 0:00:34]} 70. Qd5 {[%emt 0:00:07]} Qc7 {[%emt 0:00:07]} 71. Nf5 {[%emt 0:00:14]} Nb5 {[%emt 0:00:01]} 72. Bd2 {[%emt 0:00:01]} Be7 {[%emt 0:00:09]} 73. Bf4 {[%emt 0:00:32]} Qa7 {[%emt 0:00:05]} 74. Kg2 {[%emt 0:00:17]} Nc3 {[%emt 0:00:13]} 75. Qe6 {[%emt 0:00:08]} Qa8+ {[%emt 0:00:23]} 76. Kh3 {[%emt 0:00:08]} Qe4 {[%emt 0:00:09]} 77. Qxe4 {[%emt 0:00:10]} Nxe4 {[%emt 0:00:01]} 78. Kg4 {[%emt 0:00:13]} Bd8 {[%emt 0:00:21]} 79. Kf3 {[%emt 0:00:06]} Nc3 {[%emt 0:00:05]} 80. Bd2 {[%emt 0:00:09]} Nb5 {[%emt 0:00:13]} 81. Ke4 {[%emt 0:00:01]} Nc7 {[%emt 0:00:08]} 82. Bf4 {[%emt 0:00:09]} g6 {[%emt 0:00:06]} 83. Bxh6+ {[%emt 0:00:11]} Kf7 {[%emt 0:00:06]} 84. Nd4 {[%emt 0:00:13]} f5+ {[%emt 0:00:02]} 85. Kd3 {[%emt 0:00:04]} Kf6 {[%emt 0:00:13]} 86. Bf4 {[%emt 0:00:04]} 1-0